bitfinex/quotes_SOLUSD_20240621
["timestamp","ask_amount","ask_price","bid_price","bid_amount"]
[1718954101203,30.0,132.96,132.89,67.64]
[1718954101578,30.0,132.96,132.9,51.22]
[1718954101778,30.0,132.96,132.91,45.0]
[1718954102191,30.0,132.96,132.92,20.0]
[1718954102973,30.0,132.96,132.89,20.0]
[1718954103184,0.51,132.95,132.85,15.4196]
[1718954103503,30.0,132.94,132.85,15.4196]
[1718954103702,30.0,132.94,132.86,22.64]
[1718954104479,30.0,132.94,132.87,42.64]
[1718954105489,30.0,132.94,132.88,45.0]
[1718954105694,30.0,132.94,132.89,20.0]
[1718954106295,30.0,132.94,132.86,20.0]
[1718954106603,0.51,132.93,132.86,20.0]
[1718954106788,30.0,132.92,132.86,20.0]
[1718954107578,30.0,132.92,132.85,20.0]
[1718954108378,0.17,132.91,132.85,20.0]
[1718954108604,30.0,132.9,132.83,20.0]
[1718954108785,0.34,132.89,132.8,20.0]
[1718954109180,30.0,132.9,132.8,42.64]
[1718954109511,30.0,132.88,132.8,42.64]
[1718954109803,30.0,132.88,132.82,22.64]
[1718954109996,30.0,132.88,132.83,65.0]
[1718954112804,30.0,132.88,132.83,87.64]
[1718954113283,30.0,132.88,132.83,65.0]
[1718954113488,30.0,132.88,132.83,20.0]
[1718954113883,30.0,132.88,132.82,42.64]
[1718954114778,30.0,132.88,132.83,45.0]
[1718954114985,30.0,132.88,132.84,20.0]
[1718954117294,30.0,132.88,132.85,67.64]
[1718954117497,30.0,132.88,132.87,9.53]
[1718954117701,30.0,132.88,132.87,29.53]
[1718954119815,30.0,132.88,132.87,20.0]
[1718954122617,30.0,132.88,132.87,29.53]
[1718954125910,30.0,132.89,132.87,29.53]
[1718954126214,30.0,132.89,132.88,29.53]
[1718954128899,30.0,132.89,132.88,74.53]
[1718954130011,22.2837,132.93,132.88,74.53]
[1718954130222,22.2837,132.93,132.9,9.53]
[1718954130424,22.2837,132.93,132.91,20.0]
[1718954131108,21.1756,132.96,132.92,9.53]
[1718954131304,21.1756,132.99,132.94,9.53]
[1718954131491,21.1756,132.99,132.95,20.0]
[1718954131696,21.1756,132.99,132.96,9.53]
[1718954131914,21.1756,132.99,132.97,20.0]
[1718954132107,21.1756,132.99,132.95,20.0]
[1718954133701,21.1756,132.99,132.92,20.0]
[1718954134312,21.1756,132.99,132.93,45.0]
[1718954134498,21.1756,132.99,132.94,20.0]
[1718954136109,5.94511752,133.01,132.94,20.0]
[1718954136421,22.6495,133.02,132.94,20.0]
[1718954136608,0.17,133.01,132.94,20.0]
[1718954137315,0.51,133.01,132.94,20.0]
[1718954137519,0.51,133.01,132.92,42.64]
[1718954137720,0.51,133.01,132.93,45.0]
[1718954138017,0.51,133.01,132.94,20.0]
[1718954138224,0.34,133.01,132.94,20.0]
[1718954139302,0.17,133.01,132.94,20.0]
[1718954139518,0.34,133.01,132.94,20.0]
[1718954145126,21.7258,133.06,132.94,71.21]
[1718954145431,21.7258,133.06,132.95,69.14178489]
[1718954145602,21.7258,133.06,132.96,21.50167193]
[1718954145996,27.63567034,133.06,132.96,44.14167193]
[1718954146212,27.63567034,133.06,132.97,45.0]
[1718954146423,27.63567034,133.06,132.98,21.50144608]
[1718954146600,27.63567034,133.06,132.99,1.50133318]
[1718954147002,27.63567034,133.06,132.98,20.0]
[1718954147431,27.63567034,133.06,132.95,20.0]
[1718954147729,45.51,133.05,132.95,20.0]
[1718954150519,0.51,133.05,132.95,42.64]
[1718954150719,0.51,133.05,132.96,45.0]
[1718954150920,0.51,133.05,132.97,20.0]
[1718954152423,0.34,133.05,132.97,20.0]
[1718954152611,0.34,133.05,132.97,42.64]
[1718954152812,0.17,133.05,132.97,20.0]
[1718954153028,0.34,133.05,132.97,20.0]
[1718954153524,0.17,133.04,132.97,20.0]
[1718954154630,0.34,133.05,132.97,20.0]
[1718954155408,9.86,133.05,132.99,9.52]
[1718954155608,9.86,133.05,133.0,20.0]
[1718954158630,9.69,133.04,133.0,20.0]
[1718954159716,0.17,133.04,132.99,9.52]
[1718954159909,9.86,133.04,133.0,20.0]
[1718954160109,9.69,133.04,133.0,20.0]
[1718954160419,9.69,133.05,133.0,29.52]
[1718954160618,9.69,133.05,133.0,20.0]
[1718954161710,9.52,133.04,133.0,20.0]
[1718954161913,0.17,133.05,133.0,20.0]
[1718954162113,0.51,133.05,133.0,20.0]
[1718954162622,9.52,133.04,132.99,9.52]
[1718954162824,9.52,133.04,133.0,20.0]
[1718954163015,0.51,133.05,133.0,20.0]
[1718954163208,9.52,133.02,132.97,9.52]
[1718954163404,9.52,133.02,132.98,20.0]
[1718954163714,9.52,133.01,132.98,20.0]
[1718954163924,9.52,133.01,132.76,137.98213065]
[1718954163925,9.52,132.99,132.94,20.0]
[1718954164227,9.52,132.98,132.94,20.0]
[1718954165514,0.51,133.0,132.94,20.0]
[1718954165715,0.51,133.0,132.91,20.0]
[1718954165917,22.6053,133.01,132.91,71.22]
[1718954166532,22.6053,133.01,132.92,0.17]
[1718954167227,22.6053,133.01,132.93,22.64]
[1718954167430,32.65520142,133.06,132.94,131.714]
[1718954167643,0.17,133.05,132.94,86.714]
[1718954167812,0.17,133.05,132.95,67.64]
[1718954168125,0.17,133.05,132.96,20.0]
[1718954168638,0.34,133.05,132.96,20.0]
[1718954168934,0.17,133.04,132.96,20.0]
[1718954169228,0.34,133.04,132.96,20.0]
[1718954169535,0.17,133.04,132.96,42.64]
[1718954169718,27.90057034,133.06,132.97,45.0]
[1718954170033,27.90057034,133.06,132.98,20.0]
[1718954170932,27.90057034,133.06,132.97,20.0]
[1718954171112,0.51,133.05,132.97,20.0]
[1718954171315,0.51,133.05,132.96,42.64]
[1718954171636,0.51,133.05,132.97,45.0]
[1718954171817,0.51,133.05,132.98,20.0]
[1718954172219,27.90057034,133.06,132.98,42.64]
[1718954172220,21.9907,133.06,132.98,42.64]
[1718954172511,21.9907,133.06,132.99,45.0]
[1718954172724,21.9907,133.06,133.0,20.0]
[1718954176628,0.51,133.05,132.97,20.0]
[1718954178025,21.9907,133.06,132.97,42.64]
[1718954178221,21.9907,133.06,132.98,45.0]
[1718954178421,0.34,133.05,132.99,20.0]
[1718954178620,21.9907,133.06,132.99,20.0]
[1718954178937,0.51,133.05,132.98,20.0]
[1718954179239,0.51,133.05,132.96,20.0]
[1718954179533,0.51,133.05,132.97,45.0]
[1718954179722,0.51,133.05,132.98,20.0]
[1718954180530,0.51,133.05,132.95,20.0]
[1718954180531,21.5599,133.04,132.95,20.0]
[1718954180726,0.51,133.03,132.92,6.4273]
[1718954180921,0.51,133.03,132.91,44.4636]
[1718954181441,0.51,133.03,132.91,67.1036]
[1718954182232,0.51,133.03,132.92,65.17]
[1718954182937,0.01,133.03,132.92,65.17]
[1718954183241,0.01,133.03,132.92,87.81]
[1718954184843,0.18,133.03,132.92,87.81]
[1718954185036,0.17,133.02,132.92,87.81]
[1718954185241,0.34,133.02,132.92,87.81]
[1718954188054,33.09045015,133.05,132.92,87.81]
[1718954188231,0.17,133.04,132.92,87.81]
[1718954189130,0.17,133.04,132.93,0.17]
[1718954189358,0.17,133.04,132.93,0.34]
[1718954189535,9.52,133.02,132.96,9.52]
[1718954189848,9.52,133.02,132.97,20.0]
[1718954190363,30.0,133.0,132.97,20.0]
[1718954191031,30.0,133.0,132.96,20.0]
[1718954191743,9.52,132.98,132.96,20.0]
[1718954191947,9.52,132.98,132.92,29.52]
[1718954192755,30.0,132.97,132.92,29.52]
[1718954193128,9.52,132.98,132.92,29.52]
[1718954193665,16.2783,133.01,132.92,29.52]
[1718954193852,9.52,132.98,132.93,54.52]
[1718954194054,9.52,132.99,132.94,29.52]
[1718954194248,16.2783,133.01,132.94,29.52]
[1718954194433,9.52,132.99,132.94,29.52]
[1718954194627,9.52,133.0,132.94,29.52]
[1718954195040,16.2783,133.01,132.94,29.52]
[1718954195238,9.52,133.0,132.94,29.52]
[1718954197550,9.52,132.95,132.94,20.0]
[1718954197745,0.17,132.99,132.89,20.0]
[1718954197936,9.52,132.96,132.89,20.0]
[1718954198143,9.52,132.95,132.9,9.52]
[1718954198356,9.52,132.95,132.91,20.0]
[1718954198651,9.52,132.96,132.91,29.52]
[1718954199648,0.51,132.99,132.92,54.52]
[1718954199847,9.52,132.97,132.93,20.0]
[1718954200444,9.52,133.0,132.94,9.52]
[1718954200642,9.52,133.0,132.95,29.52]
[1718954200945,9.52,133.0,132.96,20.0]
[1718954201335,22.78087638,133.01,132.96,20.0]
[1718954201560,22.78087638,133.01,132.93,20.0]
[1718954201561,0.34,133.0,132.93,20.0]
[1718954202854,0.17,133.0,132.93,20.0]
[1718954203044,16.2783,133.01,132.93,20.0]
[1718954203242,6.3901,133.02,132.94,60.5074]
[1718954203441,6.3901,133.02,132.95,20.0]
[1718954204161,12.37130214,133.02,132.95,20.0]
[1718954208771,5.98120214,133.02,132.96,45.0]
[1718954208976,15.124,133.04,132.97,20.0]
[1718954212782,21.20609139,133.04,132.97,20.0]
[1718954214210,6.08209139,133.04,132.97,20.0]
[1718954214486,2.15070623,133.05,132.97,20.0]
[1718954215993,8.1490368,133.05,132.97,20.0]
[1718954216992,7.6390368,133.05,132.97,42.64]
[1718954217297,5.99833057,133.05,132.98,61.6602]
[1718954217458,16.9236512,133.07,132.99,20.0]
[1718954217659,0.17,133.06,132.99,20.0]
[1718954218184,16.9236512,133.07,132.99,20.0]
[1718954218483,7.01942328,133.07,133.0,45.0]
[1718954218690,7.01942328,133.07,133.01,20.0]
[1718954220482,7.01942328,133.07,133.03,16.6443]
[1718954220483,0.8099512,133.07,133.03,16.6443]
[1718954220674,0.8099512,133.07,133.04,20.0]
[1718954224792,0.8099512,133.07,133.04,29.51]
[1718954225013,0.8099512,133.07,133.05,9.51]
[1718954229189,0.8099512,133.07,133.04,20.0]
[1718954230399,9.51,133.06,133.04,20.0]
[1718954233914,0.8099512,133.07,133.04,20.0]
[1718954234086,9.51,133.06,133.04,20.0]
[1718954234292,10.3199512,133.07,133.04,20.0]
[1718954234922,9.51,133.06,133.04,20.0]
[1718954235217,9.51,133.06,132.95,22.64]
[1718954235218,9.68,133.05,132.99,15.8386]
[1718954235514,9.51,133.03,133.0,20.0]
[1718954236426,9.51,133.04,133.0,20.0]
[1718954238021,9.51,133.05,133.0,29.51]
[1718954238593,0.8099512,133.07,133.0,29.51]
[1718954238812,9.51,133.06,133.01,9.51]
[1718954239009,0.8099512,133.07,133.02,9.51]
[1718954239212,0.8099512,133.07,133.03,29.51]
[1718954240595,10.3199512,133.07,133.03,20.0]
[1718954240808,0.17,133.06,132.99,15.8386]
[1718954241112,9.51,133.02,132.97,6.5364]
[1718954241416,9.51,133.02,132.98,20.0]
[1718954242695,9.51,133.01,132.98,20.0]
[1718954242925,9.51,133.02,132.98,20.0]
[1718954243416,6.6176,133.06,132.98,20.0]
[1718954244599,8.25830623,133.06,132.98,20.0]
[1718954244793,8.25830623,133.06,132.96,15.0179]
[1718954244794,28.56,133.04,132.96,15.0179]
[1718954244999,0.51,133.03,132.97,20.0]
[1718954245311,0.51,133.03,132.94,6.2941]
[1718954245522,0.51,133.03,132.95,20.0]
[1718954248402,15.5406,133.04,132.96,45.0]
[1718954248599,15.5406,133.04,132.97,20.0]
[1718954251231,0.51,133.03,132.95,20.0]
[1718954258440,0.34,133.03,132.95,20.0]
[1718954258645,15.5406,133.04,132.96,45.0]
[1718954259014,15.5406,133.04,132.97,20.0]
[1718954260131,0.17,133.03,132.97,20.0]
[1718954260322,0.34,133.03,132.97,20.0]
[1718954260530,0.17,133.02,132.95,20.0]
[1718954260733,0.34,133.02,132.95,20.0]
[1718954261261,0.17,133.01,132.94,20.0]
[1718954261445,0.34,133.01,132.94,20.0]
[1718954262135,0.17,133.0,132.92,20.0]
[1718954262343,0.34,133.0,132.92,20.0]
[1718954264619,16.6236,132.99,132.92,20.0]
[1718954264819,16.6236,132.99,132.9,20.0]
[1718954265430,9.53,132.96,132.91,9.53]
[1718954265733,9.53,132.96,132.92,20.0]
[1718954265941,9.53,132.96,132.91,9.53]
[1718954266127,9.53,132.96,132.92,20.0]
[1718954269527,9.53,132.96,132.91,9.53]
[1718954269730,9.53,132.95,132.92,20.0]
[1718954270048,9.53,132.95,132.9,29.53]
[1718954270634,9.53,132.95,132.91,9.53]
[1718954270839,9.53,132.96,132.92,20.0]
[1718954272256,6.5044,132.98,132.92,20.0]
[1718954272432,16.0344,132.98,132.92,9.53]
[1718954272629,16.0344,132.98,132.93,20.0]
[1718954274948,9.53,132.97,132.92,9.53]
[1718954275148,9.53,132.97,132.93,20.0]
[1718954275456,16.0344,132.98,132.93,20.0]
[1718954276656,16.0344,132.98,132.92,9.53]
[1718954276858,9.53,132.97,132.93,20.0]
[1718954277929,9.53,132.97,132.92,9.53]
[1718954278174,9.53,132.97,132.93,20.0]
[1718954278926,16.4536,132.99,132.93,20.0]
[1718954279133,16.4536,132.99,132.93,29.53]
[1718954279349,9.53,132.98,132.93,29.53]
[1718954280774,9.53,132.98,132.93,20.0]
[1718954282765,9.53,132.98,132.92,9.53]
[1718954282973,9.53,132.98,132.93,20.0]
[1718954283869,9.53,132.97,132.93,20.0]
[1718954284873,9.53,132.96,132.91,9.53]
[1718954285035,9.53,132.96,132.92,20.0]
[1718954286037,9.53,132.95,132.92,20.0]
[1718954286344,9.53,132.94,132.9,20.0]
[1718954290192,9.53,132.95,132.9,29.53]
[1718954290682,9.53,132.95,132.9,20.0]
[1718954290885,9.53,132.95,132.9,29.53]
[1718954291065,9.53,132.95,132.9,20.0]
[1718954291266,9.53,132.95,132.9,29.53]
[1718954291576,9.53,132.92,132.9,20.0]
[1718954291762,9.53,132.91,132.87,20.0]
[1718954293595,9.53,132.92,132.87,20.0]
[1718954294187,9.53,132.92,132.87,29.53]
[1718954294989,16.1877,132.94,132.87,20.0]
[1718954294990,9.53,132.91,132.87,20.0]
[1718954296696,16.1877,132.94,132.87,9.88574802]
[1718954296697,9.53,132.88,132.87,9.88574802]
[1718954296899,9.53,132.88,132.82,15.1931]
[1718954297192,9.53,132.87,132.82,24.7231]
[1718954297575,9.53,132.87,132.82,15.1931]
[1718954297979,9.53,132.87,132.82,24.7231]
[1718954298165,6.4734,132.91,132.82,24.7231]
[1718954298367,9.53,132.88,132.82,24.7231]
[1718954298573,9.53,132.88,132.82,15.1931]
[1718954298809,9.53,132.88,132.83,9.53]
[1718954298986,9.53,132.88,132.83,29.53]
[1718954300378,9.53,132.88,132.83,20.0]
[1718954300581,9.53,132.86,132.83,20.0]
[1718954302601,0.17,132.9,132.83,20.0]
[1718954302803,9.53,132.89,132.83,29.53]
[1718954302978,9.53,132.89,132.84,9.53]
[1718954303395,6.4734,132.91,132.85,20.0]
[1718954303591,9.53,132.88,132.85,20.0]
[1718954303982,9.53,132.88,132.84,20.0]
[1718954304789,0.34,132.9,132.84,20.0]
[1718954304790,9.53,132.87,132.84,20.0]
[1718954305097,0.34,132.9,132.83,29.53]
[1718954305098,9.53,132.88,132.83,29.53]
[1718954305806,9.53,132.89,132.83,29.53]
[1718954306282,23.55537921,132.94,132.83,29.53]
[1718954306283,23.55537921,132.94,132.87,9.53]
[1718954306483,23.55537921,132.94,132.88,20.0]
[1718954306709,9.53,132.92,132.88,20.0]
[1718954307005,9.53,132.91,132.88,20.0]
[1718954307581,23.55537921,132.94,132.88,20.0]
[1718954307582,9.53,132.93,132.88,20.0]
[1718954307784,9.53,132.9,132.86,20.0]
[1718954308277,9.53,132.9,132.85,29.53]
[1718954308485,9.53,132.91,132.86,9.53]
[1718954308684,9.53,132.91,132.87,20.0]
[1718954308907,9.53,132.92,132.87,20.0]
[1718954309481,23.55537921,132.94,132.87,29.53]
[1718954309811,9.53,132.93,132.88,9.53]
[1718954310121,9.53,132.93,132.89,20.0]
[1718954311101,9.53,132.94,132.89,29.53]
[1718954311711,16.2463,132.97,132.89,29.53]
[1718954311894,261.2361,132.98,132.91,9.53]
[1718954312215,9.53,132.96,132.91,9.53]
[1718954312390,9.53,132.96,132.92,20.0]
[1718954313519,255.1,132.98,132.93,9.53]
[1718954313704,15.05185286,133.02,132.94,29.53]
[1718954313705,7.55172875,133.01,132.94,29.53]
[1718954313905,6.513,133.02,132.95,20.0]
[1718954314115,6.513,133.02,132.95,29.53]
[1718954314418,9.53,133.01,132.96,9.53]
[1718954314715,9.53,133.01,132.97,20.0]
[1718954315013,9.53,133.0,132.97,20.0]
[1718954315212,9.53,133.0,132.96,20.0]
[1718954315420,6.513,133.02,132.96,20.0]
[1718954315721,0.34,133.01,132.95,20.0]
[1718954318916,0.17,133.0,132.95,20.0]
[1718954319417,45.34,133.01,132.95,20.0]
[1718954319418,0.34,133.01,132.95,20.0]
[1718954320926,0.17,133.0,132.95,20.0]
[1718954322421,0.17,133.0,132.92,20.0]
[1718954323712,0.34,133.01,132.92,20.0]
[1718954323912,0.17,133.0,132.92,20.0]
[1718954324930,0.34,133.01,132.92,42.65]
[1718954325130,0.34,133.01,132.93,45.0]
[1718954325304,0.34,133.01,132.94,20.0]
[1718954328026,7.74763654,133.02,132.94,20.0]
[1718954328329,0.17,133.01,132.94,20.0]
[1718954328626,0.51,133.01,132.94,20.0]
[1718954328849,7.57763654,133.02,132.94,20.0]
[1718954329004,16.4509,133.03,132.94,20.0]
[1718954329209,0.51,133.02,132.94,20.0]
[1718954332905,0.51,133.02,132.92,20.0]
[1718954333109,45.51,133.02,132.92,20.0]
[1718954335432,9.53,132.98,132.93,9.53]
[1718954335638,9.53,132.98,132.94,20.0]
[1718954337926,9.53,132.96,132.92,20.0]
[1718954339133,9.53,132.97,132.92,29.53]
[1718954339511,9.53,132.97,132.92,20.0]
[1718954339711,9.53,132.97,132.92,29.53]
[1718954341216,9.53,132.97,132.92,20.0]
[1718954341442,0.51,132.99,132.92,20.0]
[1718954341443,9.53,132.96,132.92,20.0]
[1718954342511,0.51,132.99,132.92,20.0]
[1718954342729,0.34,132.99,132.92,20.0]
[1718954342939,9.53,132.97,132.92,29.53]
[1718954345251,9.53,132.98,132.92,29.53]
[1718954345427,0.34,132.99,132.93,9.53]
[1718954345621,9.53,132.98,132.94,20.0]
[1718954347717,9.53,132.98,132.93,20.0]
[1718954348837,0.34,132.99,132.93,20.0]
[1718954349039,9.53,132.98,132.93,20.0]
[1718954349740,9.53,132.97,132.93,20.0]
[1718954350230,9.53,132.97,132.92,20.0]
[1718954350650,9.53,132.97,132.92,29.53]
[1718954351817,15.9409,133.03,132.92,20.0]
[1718954352032,9.53,133.0,132.94,9.53]
[1718954352233,9.53,133.0,132.95,20.0]
[1718954354942,9.53,132.99,132.95,20.0]
[1718954355253,9.53,132.99,132.94,9.53]
[1718954355431,9.53,132.99,132.95,20.0]
[1718954355826,9.53,132.99,132.93,9.53]
[1718954355827,9.53,132.98,132.94,20.0]
[1718954358645,9.53,132.96,132.92,20.0]
[1718954359833,9.53,132.95,132.92,20.0]
[1718954360744,9.53,132.96,132.92,20.0]
[1718954361456,9.53,132.93,132.92,20.0]
[1718954366725,9.53,132.93,132.88,26.167]
[1718954366928,9.53,132.91,132.89,20.0]
[1718954367542,0.34,132.94,132.85,15.9706]
[1718954367543,9.53,132.9,132.85,15.9706]
[1718954367744,0.17,132.92,132.86,20.0]
[1718954367745,9.53,132.89,132.86,20.0]
[1718954374552,9.53,132.88,132.86,20.0]
[1718954374750,9.53,132.87,132.86,20.0]
[1718954375873,9.53,132.88,132.86,20.0]
[1718954376047,9.53,132.88,132.84,20.0]
[1718954376953,9.53,132.87,132.84,20.0]
[1718954378575,6.3767,132.92,132.84,20.0]
[1718954378778,9.53,132.88,132.84,20.0]
[1718954380761,0.34,132.91,132.84,20.0]
[1718954380963,9.53,132.88,132.84,20.0]
[1718954381572,0.34,132.91,132.84,20.0]
[1718954381754,9.53,132.88,132.84,20.0]
[1718954382877,9.53,132.87,132.84,20.0]
[1718954384175,9.53,132.88,132.84,20.0]
[1718954384858,9.53,132.89,132.84,29.53]
[1718954385056,0.17,132.91,132.84,29.53]
[1718954385257,9.53,132.88,132.84,20.0]
[1718954385679,0.34,132.92,132.84,20.0]
[1718954385982,9.53,132.88,132.84,20.0]
[1718954387959,9.53,132.89,132.84,29.53]
[1718954389176,9.53,132.89,132.84,20.0]
[1718954389586,9.53,132.88,132.84,20.0]
[1718954392288,9.53,132.87,132.84,20.0]
[1718954392458,9.53,132.88,132.84,20.0]
[1718954392888,9.53,132.87,132.84,20.0]
[1718954397186,9.53,132.89,132.84,29.53]
[1718954399588,9.53,132.88,132.84,20.0]
[1718954400094,9.53,132.87,132.84,20.0]
[1718954400299,9.53,132.88,132.84,20.0]
[1718954402103,9.53,132.89,132.84,29.53]
[1718954402485,9.53,132.89,132.84,20.0]
[1718954402782,9.53,132.88,132.84,20.0]
[1718954403875,9.53,132.87,132.84,20.0]
[1718954406371,9.53,132.85,132.84,20.0]
[1718954408770,9.53,132.85,132.82,20.0]
[1718954413495,0.17,132.88,132.82,20.0]
[1718954413798,9.53,132.85,132.82,20.0]
[1718954415296,9.53,132.86,132.82,20.0]
[1718954416293,9.53,132.85,132.82,20.0]
[1718954418498,0.34,132.88,132.82,20.0]
[1718954418702,9.53,132.86,132.82,20.0]
[1718954419003,9.53,132.87,132.82,20.0]
[1718954422600,3.25959541,132.92,132.83,16.1091]
[1718954422801,9.53,132.89,132.84,29.53]
[1718954423188,9.53,132.88,132.84,20.0]
[1718954425601,7.23988622,132.92,132.84,20.0]
[1718954425796,9.53,132.88,132.84,20.0]
[1718954429590,0.34,132.91,132.84,20.0]
[1718954429792,9.53,132.89,132.84,29.53]
[1718954430497,9.53,132.89,132.84,20.0]
[1718954430798,9.53,132.88,132.84,20.0]
[1718954431917,9.53,132.89,132.84,20.0]
[1718954434004,9.53,132.91,132.86,9.53]
[1718954434205,9.53,132.92,132.87,20.0]
[1718954434524,9.53,132.88,132.87,20.0]
[1718954434730,271.70702867,132.93,132.86,20.0]
[1718954434930,9.53,132.88,132.86,20.0]
[1718954435407,9.53,132.89,132.86,20.0]
[1718954437416,9.53,132.89,132.84,29.53]
[1718954439706,9.53,132.9,132.84,29.53]
[1718954440717,9.53,132.9,132.84,28.0384]
[1718954440917,9.53,132.9,132.85,9.53]
[1718954441809,262.17702867,132.93,132.85,9.53]
[1718954442117,9.53,132.91,132.85,9.53]
[1718954443015,9.53,132.91,132.84,18.5084]
[1718954443016,9.53,132.91,132.86,20.0]
[1718954443214,9.53,132.9,132.86,20.0]
[1718954443919,9.53,132.87,132.83,16.1091]
[1718954444108,9.53,132.86,132.83,16.1091]
[1718954445615,9.53,132.86,132.84,20.0]
[1718954446015,9.53,132.87,132.84,20.0]
[1718954447004,0.34,132.89,132.84,20.0]
[1718954447218,9.53,132.87,132.84,20.0]
[1718954448221,9.53,132.87,132.83,0.65236971]
[1718954448821,9.53,132.86,132.83,0.65236971]
[1718954449199,9.53,132.86,132.81,16.1706]
[1718954449594,9.53,132.86,132.81,6.6406]
[1718954449806,9.53,132.85,132.81,6.6406]
[1718954450514,9.53,132.85,132.82,20.0]
[1718954451320,9.53,132.86,132.82,20.0]
[1718954454407,0.34,132.87,132.82,29.53]
[1718954454408,0.17,132.87,132.82,29.53]
[1718954454613,9.53,132.87,132.82,29.53]
[1718954454815,16.2148,132.9,132.82,20.0]
[1718954455019,9.53,132.88,132.83,9.53]
[1718954455210,9.53,132.88,132.84,20.0]
[1718954457534,9.53,132.85,132.79,15.9407]
[1718954457739,0.17,132.87,132.8,20.0]
[1718954457740,9.53,132.84,132.8,20.0]
[1718954458631,9.53,132.85,132.8,20.0]
[1718954458823,21.8824,132.89,132.8,29.53]
[1718954459007,9.53,132.87,132.81,54.53]
[1718954459207,9.53,132.87,132.82,20.0]
[1718954459809,9.53,132.86,132.82,20.0]
[1718954460825,9.53,132.84,132.82,20.0]
[1718954461127,9.53,132.84,132.8,20.0]
[1718954465043,0.17,132.88,132.8,20.0]
[1718954465211,15.4038,132.89,132.8,42.65]
[1718954465413,9.53,132.88,132.82,9.53]
[1718954465621,9.53,132.87,132.83,20.0]
[1718954465817,9.53,132.86,132.83,20.0]
[1718954466412,9.53,132.86,132.82,20.0]
[1718954467644,9.53,132.85,132.82,20.0]
[1718954469729,9.53,132.85,132.8,20.0]
[1718954469921,9.53,132.84,132.8,20.0]
[1718954470621,9.53,132.85,132.8,20.0]